[Event "Croatian Team Cup Final 2022"]
[Site "Vodice"]
[Date "2022.05.19"]
[Round "2.9"]
[White "Martinovic, Sasa"]
[Black "Trbojevic, Mladen"]
[Result "1-0"]
[ECO "D85"]
[WhiteElo "2552"]
[BlackElo "2337"]
[Annotator "TA"]
[PlyCount "61"]
[EventDate "2022.05.18"]
[EventType "team-tourn"]
[EventCountry "CRO"]
[SourceTitle "playchess.com"]
[Source "ChessBase"]
[SourceQuality "1"]
[TimeControl "40/5400+30:1800+30"]

{[%evp 9,61,24,27,15,33,12,37,25,57,57,64,50,132,133,114,106,150,156,198,173,153,146,224,247,239,156,235,254,283,217,212,207,252,257,386,379,372,242,229,236,223,227,526,535,467,370,29989,29990,29991,29992,29992,29993,29997,29998]} 1. d4 {[%emt 0:00:01]} Nf6 {[%emt 0:00:33]} 2. c4 {[%emt 0:00:04]} g6 {[%emt 0:00:12]} 3. Nc3 {[%emt 0:00:06]} d5 {[%emt 0:00:08]} 4. cxd5 {[%emt 0:00:04]} Nxd5 {[%emt 0:00:11]} 5. Bd2 {[%emt 0:00:05]} Nb6 {[%emt 0:00:18]} 6. e3 {[%emt 0:00:17] D85: Exchange Grünfeld: Unusual White 7th moves and lines with 7 Nf3.} Bg7 {[%emt 0:00:16]} 7. h4 {[%emt 0:00:08][%cal Bh2h4,Bh4h5][%mdl 32]} N8d7 {[%emt 0:04:31]} 8. h5 {[%emt 0:00:12] White is slightly better.} c5 {[%emt 0:01:37] [#]} 9. a4 $146 {[%emt 0:00:31] aiming for a5.} ({Predecessor:} 9. hxg6 hxg6 10. Rxh8+ Bxh8 11. Nf3 cxd4 12. exd4 Nf6 13. Bb5+ Bd7 14. Qe2 Bxb5 15. Qxb5+ {0-1 (37) Ioannidis,E (2411)-Petriashvili,N (2424) Chess.com INT 2021}) 9... a5 $1 {[%emt 0:03:59]} 10. Nf3 {[%emt 0:08:46]} O-O {[%emt 0:19:40]} ({Black should play} 10... cxd4 $14 11. exd4 O-O) 11. hxg6 $16 {[%emt 0:02:52]} hxg6 {[%emt 0:00:24]} 12. d5 $1 {[%emt 0:10:00] White is more active.} Nf6 {[%emt 0:07:56]} 13. e4 {[%emt 0:00:18]} Bg4 {[%emt 0:03:38] [#]} 14. Qc1 $1 {[%emt 0:03:17]} Bxf3 {[%emt 0:18:51]} 15. gxf3 {[%emt 0:00:06]} e6 {[%emt 0:00:24]} (15... Nh5 $16 {was necessary.} 16. Nb5 Nd7) 16. dxe6 $18 {[%emt 0:18:51]} fxe6 {[%emt 0:00:18]} 17. Bh3 {[%emt 0:01:05]} Qe8 {[%emt 0:06:20]} (17... Qd7 $16) 18. Nb5 {[%emt 0:04:11] And now Nc7 would win.} Qc6 {[%emt 0:02:21][%cal Of6e4] Prevents Nc7.} 19. Be3 {[%emt 0:07:15]} Nfd7 {[%emt 0:02:57]} 20. Ke2 {[%emt 0:02:59]} Rae8 {[%emt 0:09:05][%cal Ob6a4]} 21. Qc2 {[%emt 0:02:04]} c4 {[%emt 0:05:15]} (21... Rf7 {is a better defense.} 22. Rhg1 Nf8 23. Qxc5 Nc4) 22. Rad1 {[%emt 0:03:26] Threatens to win with Rd6.} Be5 {[%emt 0:00:31] Prevents Rd6.} 23. Nd4 {[%emt 0:03:53]} Bxd4 {[%emt 0:02:11]} 24. Bxd4 {[%emt 0:01:21]} e5 {[%emt 0:00:45] [#]} 25. Be3 {[%emt 0:07:38] This bishop pair is nice.} Nc5 $2 {[%emt 0:00:17]} (25... Qf6 $2 26. Rdg1 (26. Bxd7 Qxf3+ 27. Kd2 Nxd7 $16) 26... Rf7 27. Bf5 $18) (25... Rf6 26. Bxd7 Nxd7) 26. Bxc5 {[%emt 0:01:02]} Qxc5 {[%emt 0:00:07]} 27. Qd2 {[%emt 0:00:05][%cal Oh3f5] White wants to mate with Bf5!} Kg7 $2 {[%emt 0:01:34] [#]} (27... Rf4 $18 28. Rdg1 (28. Qd6 Qc6 $16) 28... Kf7) 28. Bf5 $1 {[%emt 0:05:08][%mdl 512] White mates.} Rh8 {[%emt 0:02:50]} (28... Rf6 29. Qh6+) 29. Qg5 {[%emt 0:00:06]} Qc6 {[%emt 0:01:12]} 30. Rxh8 {[%emt 0:00:07]} Rxh8 {[%emt 0:00:20]} 31. Qe7+ {[%emt 0:00:04] White took control after the opening.  Weighted Error Value: White=0.14 (very precise) /Black=0.52} 1-0

[Event "Croatian Team Cup Final 2022"]
[Site "Vodice"]
[Date "2022.05.19"]
[Round "2.10"]
[White "Krstic, Uros"]
[Black "Livaic, Leon"]
[Result "1-0"]
[ECO "A14"]
[WhiteElo "2321"]
[BlackElo "2562"]
[Annotator "TA"]
[PlyCount "101"]
[EventDate "2022.05.18"]
[EventType "team-tourn"]
[EventCountry "CRO"]
[SourceTitle "playchess.com"]
[Source "ChessBase"]
[SourceQuality "1"]
[TimeControl "40/5400+30:1800+30"]

{[%evp 14,101,35,0,8,-5,-5,-23,-14,-10,0,-16,0,0,6,-17,0,0,0,-6,0,-13,0,0,18,-14,-13,-12,-3,-20,27,25,16,20,42,19,36,16,37,11,60,68,50,40,102,87,97,72,207,206,188,116,100,111,270,281,260,211,183,194,326,327,329,290,442,257,265,265,262,243,414,412,529,523,816,629,627,624,915,609,818,819,789,721,752,733,720,644,721,673]} 1. Nf3 {[%emt 0:00:44]} Nf6 {[%emt 0:00:22]} 2. g3 {[%emt 0:00:14]} d5 {[%emt 0:00:12]} 3. Bg2 {[%emt 0:00:07]} e6 {[%emt 0:00:51]} 4. O-O {[%emt 0:00:39]} Be7 {[%emt 0:04:24]} 5. c4 {[%emt 0:04:19]} O-O {[%emt 0:00:00]} 6. b3 {[%emt 0:03:30]} a5 {[%emt 0:00:00][%cal Ba7a5,Ba5a4][%mdl 32] 6...d4 is setting a new trend.} 7. Bb2 {[%emt 0:00:29]} c6 {[%emt 0:00:00]} 8. d3 {[%emt 0:16:27]} a4 {[%emt 0:01:51] A14: English Opening: 1...e6 with b3 by White.} 9. a3 {[%emt 0:08:40]} axb3 {[%emt 0:00:13] [#]} 10. Nbd2 $146 {[%emt 0:00:29]} ({Predecessor:} 10. Qxb3 Nbd7 11. Nbd2 Nc5 12. Qc2 Qa5 13. d4 Nce4 14. c5 Ra6 15. Nxe4 Nxe4 16. Ne5 {½-½ (33) Becker,A (2190)-Zenker,U (2284) Bad Wiessee 2006}) 10... c5 {[%emt 0:11:16] Black has an edge.} 11. e3 {[%emt 0:08:33] Inhibits d4.} Bd7 {[%emt 0:06:35]} 12. Qxb3 {[%emt 0:06:46]} Nc6 {[%emt 0:08:57]} 13. Rab1 {[%emt 0:07:54]} ({Don't go for} 13. Qxb7 $2 Na5 14. Qxa8 Qxa8 $19) 13... Na5 {[%emt 0:03:17]} 14. Qa2 {[%emt 0:10:39]} Ba4 {[%emt 0:03:23]} 15. Bc3 {[%emt 0:01:13]} Ra7 {[%emt 0:03:04]} 16. Rfc1 {[%emt 0:01:39]} dxc4 {[%emt 0:04:45]} 17. dxc4 {[%emt 0:04:28]} Nc6 {[%emt 0:07:58]} 18. Qa1 {[%emt 0:03:18]} Qd3 {[%emt 0:03:27]} 19. Ne1 {[%emt 0:01:43][%cal Bf3e1,Be1d3,Bd3f4,Bf4d5][%mdl 32]} Qg6 {[%emt 0:01:35]} 20. Rb2 {[%emt 0:05:27]} Nd7 {[%emt 0:04:14]} 21. Qb1 {[%emt 0:01:41]} b6 {[%emt 0:03:50]} (21... Qxb1 {is more appropriate.} 22. Rcxb1 (22. Rbxb1 b6 $11) 22... b6) 22. Nd3 $11 {[%emt 0:05:33]} Rc8 {[%emt 0:05:23]} 23. Ne4 {[%emt 0:04:26]} f5 {[%emt 0:02:19]} 24. Nf4 {[%emt 0:00:00]} (24. Nd2 $5 {[%cal Rd3f4]}) 24... Qf7 {[%emt 0:00:23]} 25. Nd2 {[%emt 0:00:00][%cal Of4e6] Strongly threatening Nxe6!} Kh8 {[%emt 0:02:25]} 26. h4 {[%emt 0:00:00]} Bd8 {[%emt 0:05:54]} (26... Re8 $11) 27. Nf3 $14 {[%emt 0:00:47]} e5 {[%emt 0:01:26]} 28. Nd5 {[%emt 0:00:30]} h6 {[%emt 0:01:05] Prevents Ng5.} (28... e4 $14) 29. e4 $16 {[%emt 0:01:19][%cal Be3e4,Be4f5][%mdl 32] White is more active.} Nd4 {[%emt 0:05:44]} 30. Bxd4 {[%emt 0:01:29]} (30. exf5 {feels hotter.} Bc6 31. Re1 Bxd5 32. Nxd4 Be4 33. Bxe4 exd4 34. Bd5) 30... exd4 {[%emt 0:00:30]} (30... cxd4 $16 31. exf5 b5) 31. exf5 {[%emt 0:00:03]} Bc6 {[%emt 0:01:16]} 32. Re2 {[%emt 0:00:45]} (32. Nf4 $1 $18) 32... Bxd5 {[%emt 0:01:49]} 33. cxd5 {[%emt 0:00:05][%cal Of3d4] Black must now prevent Nxd4!} Rxa3 $2 {[%emt 0:00:19] [#]} (33... Bf6 $16 {was called for.}) 34. Nxd4 $1 $18 {[%emt 0:01:53][%mdl 512]} Bf6 {[%emt 0:00:44]} 35. Nb5 {[%emt 0:01:17]} Ra1 {[%emt 0:00:01] ...Rca8 is the strong threat.} 36. Qc2 $1 {[%emt 0:00:41]} Rca8 {[%emt 0:00:59] [#]} (36... Rxc1+ $142 37. Qxc1 Qh5) 37. Rxa1 $1 {[%emt 0:00:22]} Rxa1+ {[%emt 0:00:04]} 38. Kh2 {[%emt 0:00:02]} Qh5 {[%emt 0:01:44]} (38... Ne5 $142 39. f4 Ng4+ 40. Kh3 h5) 39. Re4 {[%emt 0:01:16]} (39. Qe4 $142) 39... Ne5 {[%emt 0:01:04] [#] Against Bf3. Hoping for ...Nf3+.} 40. Qe2 {[%emt 0:00:00] Prevents Nf3+.} Qxe2 {[%emt 0:00:00]} (40... Qxf5 $2 41. Nd6 Qd7 42. Rxe5 Bxe5 43. Qxe5 $18) 41. Rxe2 {[%emt 0:00:15]} Rb1 $2 {[%emt 0:03:16]} (41... Ra5) 42. Nd6 {[%emt 0:09:48]} Kh7 {[%emt 0:06:58]} 43. f4 {[%emt 0:15:10] White is clearly winning.} Ng4+ {[%emt 0:01:15]} 44. Kh3 {[%emt 0:00:02]} h5 {[%emt 0:00:05]} 45. Bf3 {[%emt 0:00:12]} Rd1 {[%emt 0:05:27]} 46. Re6 {[%emt 0:02:25]} Rd2 {[%emt 0:00:50][%csl Gg4][%cal Rd2h2]} 47. Bxg4 {[%emt 0:00:34]} hxg4+ {[%emt 0:00:04]} 48. Kxg4 {[%emt 0:00:03] aiming for Ne4.} Rxd5 {[%emt 0:00:10]} 49. Ne4 {[%emt 0:00:14][%csl LRb6,LRf6] And now Re8 would win.} Rd8 {[%emt 0:02:01] Against Re8} 50. Rxb6 {[%emt 0:00:31]} Bd4 {[%emt 0:00:18]} 51. Rc6 {[%emt 0:00:18] Against Rc8.  Weighted Error Value: White=0.22 (precise) /Black=0.37} 1-0

[Event "Croatian Team Cup Final 2022"]
[Site "Vodice"]
[Date "2022.05.19"]
[Round "2.11"]
[White "Rogic, Davor"]
[Black "Tomasic, Roland"]
[Result "1-0"]
[ECO "B72"]
[WhiteElo "2457"]
[BlackElo "2108"]
[Annotator "TA"]
[PlyCount "57"]
[EventDate "2022.05.18"]
[EventType "team-tourn"]
[EventCountry "CRO"]
[SourceTitle "playchess.com"]
[Source "ChessBase"]
[SourceQuality "1"]
[TimeControl "40/5400+30:1800+30"]

{[%evp 15,57,50,68,33,64,66,74,59,75,66,69,59,63,28,22,46,60,56,68,57,64,69,65,62,192,191,184,177,564,154,554,275,351,226,585,575,585,557,638,585,745,704,655,587]} 1. e4 {[%emt 0:00:21]} c5 {[%emt 0:00:04]} 2. Nf3 {[%emt 0:00:29]} d6 {[%emt 0:00:06]} 3. d4 {[%emt 0:00:20]} cxd4 {[%emt 0:00:07]} 4. Nxd4 {[%emt 0:00:13]} Nf6 {[%emt 0:00:05]} 5. Nc3 {[%emt 0:00:21]} Bd7 {[%emt 0:00:06]} 6. Be2 {[%emt 0:05:57]} Nc6 {[%emt 0:00:10]} 7. Be3 {[%emt 0:03:25]} g6 {[%emt 0:00:44]} 8. Qd2 {[%emt 0:00:58]} Bg7 {[%emt 0:00:08]} 9. O-O-O {[%emt 0:00:31] B72: Sicilian Dragon: 6 Be3, lines with h3+Bc4 and sidelines.} a6 {[%emt 0:08:50]} 10. f3 {[%emt 0:05:57]} b5 {[%emt 0:01:41]} 11. Kb1 {[%emt 0:02:20] White is better.} h5 {[%emt 0:02:33]} 12. Rhe1 {[%emt 0:04:16]} Rc8 {[%emt 0:05:52]} 13. h3 {[%emt 0:04:52]} Qc7 {[%emt 0:04:26]} 14. Nxc6 {[%emt 0:18:29] [#]} Bxc6 $146 {[%emt 0:05:27]} ({Predecessor:} 14... Qxc6 15. Bd3 Be6 16. Ne2 Bc4 17. Ng3 Nd7 18. f4 Nc5 19. Bxc4 bxc4 20. Bd4 Ne6 {1-0 (40) Pettersson,T (2061)-Gorfinkel,E Oulu 2001}) 15. Bd4 {[%emt 0:02:26]} e5 {[%emt 0:11:14]} 16. Be3 {[%emt 0:02:21]} b4 {[%emt 0:00:11]} 17. Nd5 {[%emt 0:00:38]} Nxd5 {[%emt 0:00:40]} 18. exd5 {[%emt 0:00:24]} Ba4 {[%emt 0:01:20][%cal Ra4c2]} 19. Bd3 {[%emt 0:03:52]} (19. Bxa6 Bxc2+ 20. Ka1 Ra8 $17) 19... e4 {[%emt 0:04:07]} (19... a5 $14) 20. Bg5 $18 {[%emt 0:06:32]} (20. Bxe4 $6 O-O $16) 20... O-O {[%emt 0:00:25]} 21. Rxe4 {[%emt 0:00:12]} Bc3 $2 {[%emt 0:09:56] [#]} (21... Qc5 {is a better chance.} 22. Be3 (22. Rxb4 Rb8 $11) 22... Qxd5) 22. Qe2 $2 {[%emt 0:01:16] Active counter play!} (22. bxc3 $18 {and the rest is easy.} bxc3 23. Qc1) 22... Rfe8 $2 {[%emt 0:10:04] Black cannot hold the game after this.} (22... Bg7 $16 {is more resistant.} 23. g4 (23. Rxb4 Rb8 $11) 23... hxg4) 23. g4 {[%emt 0:03:18]} (23. bxc3 $142 bxc3 24. Ka1) 23... Rxe4 {[%emt 0:10:49]} (23... Bxb2 $2 24. Kxb2 Qc3+ 25. Kb1 $18) 24. Qxe4 {[%emt 0:04:30]} Bxb2 {[%emt 0:13:32]} (24... Re8 25. Qc4 (25. Qf4 Be5 $16) 25... Qxc4 26. Bxc4 Be5 27. Bxa6 hxg4) 25. Kxb2 {[%emt 0:00:56] White is clearly winning.} Qc3+ {[%emt 0:00:04]} 26. Kb1 {[%emt 0:00:14]} Re8 {[%emt 0:04:34]} 27. Bd2 {[%emt 0:01:18]} Qc7 {[%emt 0:03:00]} 28. Qd4 {[%emt 0:00:51] [#] And now gxh5 would win.} Rc8 {[%emt 0:02:15]} 29. Rc1 {[%emt 0:00:20] Weighted Error Value: White=0.72/Black=0.83} 1-0

[Event "Croatian Team Cup Final 2022"]
[Site "Vodice"]
[Date "2022.05.19"]
[Round "2.12"]
[White "Husajina, Nikola"]
[Black "Kurajica, Bojan"]
[Result "0-1"]
[ECO "B28"]
[WhiteElo "1690"]
[BlackElo "2531"]
[Annotator "TA"]
[PlyCount "58"]
[EventDate "2022.05.18"]
[EventType "team-tourn"]
[EventCountry "CRO"]
[SourceTitle "playchess.com"]
[Source "ChessBase"]
[SourceQuality "1"]
[TimeControl "40/5400+30:1800+30"]

{[%evp 9,58,45,56,29,29,42,40,39,45,-25,-25,-27,-16,-23,-22,-10,-14,-8,-12,-49,-52,-64,-68,-183,-178,-207,-198,-509,-503,-508,-506,-513,-506,-506,-491,-595,-614,-619,-604,-681,-686,-744,-735,-965,-956,-1159,-1135,-29988,-29989,-29992,-29992]} 1. e4 {[%emt 0:00:05]} c5 {[%emt 0:00:10]} 2. Nf3 {[%emt 0:00:14]} a6 {[%emt 0:00:25]} 3. b3 {[%emt 0:01:16]} d5 {[%emt 0:03:01]} 4. exd5 {[%emt 0:02:28]} Qxd5 {[%emt 0:00:06]} 5. Bb2 {[%emt 0:00:25]} Nc6 {[%emt 0:00:38]} 6. Nc3 {[%emt 0:03:07] B28: Sicilian: 2 Nf3 a6 (O'Kelly Variation).} Qd8 {[%emt 0:01:24]} 7. Ne4 {[%emt 0:04:11] [#]} Nf6 $146 {[%emt 0:08:59]} ({Predecessor:} 7... e6 8. g3 Nf6 9. Nxf6+ gxf6 10. Bg2 e5 11. O-O Bg4 12. Re1 Be7 13. h3 Be6 {1-0 (35) Dede,E (2280)-Csoke,K (2212) Hungary 2000}) 8. Bd3 {[%emt 0:11:39] White is slightly better.} Nb4 {[%emt 0:05:14]} 9. Nxf6+ {[%emt 0:08:48]} (9. O-O $14) 9... gxf6 $11 {[%emt 0:00:11]} 10. Be2 {[%emt 0:11:43]} Rg8 {[%emt 0:03:55]} 11. a3 {[%emt 0:01:30]} Nc6 {[%emt 0:00:43]} 12. g3 {[%emt 0:01:28]} e5 {[%emt 0:01:27] Against d4} 13. Bd3 {[%emt 0:05:52]} h5 {[%emt 0:12:19]} (13... Qd5 {with more complications.} 14. Qe2 Bg4 15. Be4 Qd7) 14. h3 {[%emt 0:10:29]} Be6 {[%emt 0:02:43][%cal Bc8e6,Be6b3,Bb3d5][%mdl 32]} 15. Qe2 {[%emt 0:05:42]} Qd7 {[%emt 0:00:52]} 16. h4 {[%emt 0:04:16] [#]} (16. Be4 $15) 16... O-O-O $1 $19 {[%emt 0:03:09][%cal Be8c8,Bc8b7,Bb7a6][%mdl 32] Strongly threatening ...Bg4.} 17. Nh2 {[%emt 0:02:36]} Bxb3 {[%emt 0:02:52]} 18. Bxa6 $2 {[%emt 0:03:23]} (18. O-O) 18... Bd5 {[%emt 0:01:06]} ({And not} 18... bxa6 19. cxb3 Qd3 20. Rc1 $17) 19. Rg1 {[%emt 0:04:18]} bxa6 {[%emt 0:00:24]} 20. Qxa6+ {[%emt 0:00:07]} Qb7 {[%emt 0:00:10]} 21. Qxb7+ {[%emt 0:02:09]} Kxb7 {[%emt 0:00:07]} 22. Nf1 {[%emt 0:00:33]} Nd4 {[%emt 0:00:45]} 23. Bxd4 {[%emt 0:01:08]} cxd4 {[%emt 0:02:27][%cal Bc5d4,Bd4c3][%mdl 32]} 24. d3 {[%emt 0:05:19]} Rc8 {[%emt 0:00:46]} 25. Rb1+ {[%emt 0:00:59]} Ka6 {[%emt 0:01:26]} 26. c4 {[%emt 0:01:47]} dxc3 {[%emt 0:00:21]} 27. Ne3 {[%emt 0:00:10]} Bf3 {[%emt 0:00:25]} 28. Nc4 {[%emt 0:01:18] [#]} Rxc4 $1 {[%emt 0:00:35]} 29. dxc4 {[%emt 0:00:26]} (29. g4 Rcxg4) 29... Bh6 {[%emt 0:00:07] White got outplayed after the opening.  Weighted Error Value: White=0.94/Black=0.01 (flawless)} 0-1

[Event "Croatian Team Cup Final 2022"]
[Site "Vodice"]
[Date "2022.05.19"]
[Round "2.13"]
[White "Jakic, Ivan"]
[Black "Saric, Ante"]
[Result "1/2-1/2"]
[WhiteElo "2350"]
[BlackElo "2510"]
[Annotator "TA"]
[PlyCount "37"]
[EventDate "2022.05.18"]
[EventType "team-tourn"]
[EventCountry "CRO"]
[SourceTitle "playchess.com"]
[Source "ChessBase"]
[SourceQuality "1"]
[TimeControl "40/5400+30:1800+30"]

{[%evp 18,19,6,-7]} 1. e4 {[%emt 0:00:03]} c5 {[%emt 0:00:58]} 2. Nf3 {[%emt 0:00:06]} e6 {[%emt 0:00:05]} 3. d4 {[%emt 0:00:23]} cxd4 {[%emt 0:00:07]} 4. Nxd4 {[%emt 0:00:01]} a6 {[%emt 0:00:10]} 5. Nc3 {[%emt 0:00:05]} Qc7 {[%emt 0:00:04]} 6. Bd3 {[%emt 0:01:44]} Nf6 {[%emt 0:01:06]} 7. O-O {[%emt 0:00:54]} d6 {[%emt 0:01:28]} 8. Qe2 {[%emt 0:03:30]} g6 {[%emt 0:16:55]} 9. Kh1 {[%emt 0:04:43] was the old line (9.f4).} Bg7 {[%emt 0:01:10]} 10. f4 {[%emt 0:01:17] [#]} {Predecessor:} Nbd7 $146 {B42: Sicilian: Kan Variation: 5 Bd3.} 11. f5 Ne5 12. Bg5 O-O 13. Nf3 Nxd3 14. cxd3 exf5 15. Nh4 h6 16. Bxf6 Bxf6 17. Nd5 Qd8 18. Nxf5 gxf5 19. exf5 {0-1 (26) Groszpeter,A (2541)-Almasi,Z (2684) Szeged 2009} 1/2-1/2

[Event "Croatian Team Cup Final 2022"]
[Site "Vodice"]
[Date "2022.05.19"]
[Round "2.14"]
[White "Plenca, Julijan"]
[Black "Ivic, Mateo"]
[Result "1-0"]
[ECO "E71"]
[WhiteElo "2443"]
[BlackElo "2187"]
[Annotator "TA"]
[PlyCount "47"]
[EventDate "2022.05.18"]
[EventType "team-tourn"]
[EventCountry "CRO"]
[SourceTitle "playchess.com"]
[Source "ChessBase"]
[SourceQuality "1"]
[TimeControl "40/5400+30:1800+30"]

{[%evp 11,47,16,59,56,44,35,42,13,82,41,81,64,75,72,51,47,50,61,70,29,106,99,122,25,29,0,29,30,30,44,748,748,725,666,29984,29985,29994,29995]} 1. d4 {[%emt 0:02:52]} Nf6 {[%emt 0:00:45]} 2. c4 {[%emt 0:00:10]} g6 {[%emt 0:00:33]} 3. Nc3 {[%emt 0:00:15]} Bg7 {[%emt 0:00:24]} 4. e4 {[%emt 0:00:11]} d6 {[%emt 0:00:08]} 5. h3 {[%emt 0:00:55]} O-O {[%emt 0:01:04]} 6. Be3 {[%emt 0:00:05]} Na6 {[%emt 0:02:22]} 7. g4 {[%emt 0:03:58][%cal Bg2g4,Bg4g5][%mdl 32] E71: King's Indian: 4 e4 d6 5 h3.} e5 {[%emt 0:02:12]} 8. d5 {[%emt 0:00:05]} Nc5 {[%emt 0:00:41]} 9. Qc2 {[%emt 0:00:25] White is slightly better.} a5 {[%emt 0:00:42]} (9... c6 $1 $11) 10. Nge2 {[%emt 0:00:35]} Bd7 {[%emt 0:03:10]} 11. Ng3 {[%emt 0:01:00]} c6 {[%emt 0:05:08]} 12. g5 {[%emt 0:03:05]} Ne8 {[%emt 0:00:27]} 13. h4 {[%emt 0:00:00][%cal Bh3h4,Bh4h5][%mdl 32] [#]} a4 $146 {[%emt 0:00:58]} ({Predecessor:} 13... Nc7 14. h5 cxd5 15. cxd5 b5 16. f3 b4 17. Nd1 Nb5 18. Qh2 Nd4 19. Kf2 Nc2 20. hxg6 fxg6 21. Qxh7+ {1-0 (26) Reinaldo Castineira,R (2489)-Libiszewski,F (2522) Linares 2021}) 14. h5 {[%emt 0:06:18]} Qa5 {[%emt 0:01:34]} 15. Qd2 {[%emt 0:00:45]} Nc7 {[%emt 0:03:28]} (15... f6 $11 {keeps the balance.}) 16. f3 {[%emt 0:03:57]} cxd5 {[%emt 0:02:34]} 17. cxd5 {[%emt 0:00:47]} (17. exd5 $16 Ne8 18. Nge4) 17... b5 {[%emt 0:01:03]} 18. Qh2 {[%emt 0:03:08] [#] Black must now prevent hxg6.} Rfb8 {[%emt 0:10:36]} (18... Rfc8 $5 {[%cal Ra4a3]}) 19. Bd2 {[%emt 0:05:56] hxg6 is the strong threat.} b4 {[%emt 0:02:09]} 20. Nd1 {[%emt 0:00:05] Strongly threatening hxg6.} ({Of course not} 20. hxg6 hxg6 21. Nd1 Kf8 $11) 20... Bb5 $2 {[%emt 0:03:28][%mdl 8192] Loses the game.} (20... Kf8 $14) 21. hxg6 $18 {[%emt 0:01:42]} hxg6 {[%emt 0:00:15]} 22. Ne3 {[%emt 0:00:24][%cal Oe3f5] Threatening mate with Nef5!} ({Inferior is} 22. Bxb5 Qxb5 23. Nf2 Kf8 $11) 22... Ne8 {[%emt 0:08:24] [#]} 23. Nef5 $1 {[%emt 0:02:18][%mdl 512]} gxf5 {[%emt 0:03:52]} (23... f6 24. Qh7+) 24. Nxf5 {[%emt 0:00:38] Weighted Error Value: White=0.24 (precise) /Black=0.54} ({Stronger than} 24. Bxb5 Qxb5 25. Nxf5 Nd3+ 26. Kd1 Nxb2+ 27. Ke1 Nd3+ 28. Kd1 Nb2+ 29. Ke1 Nd3+ 30. Kd1 Nb2+ $11) 1-0

[Event "Croatian Team Cup Final 2022"]
[Site "Vodice"]
[Date "2022.05.19"]
[Round "2.15"]
[White "Tomas, Ante"]
[Black "Plenca, Jadranko"]
[Result "1/2-1/2"]
[ECO "C29"]
[WhiteElo "2117"]
[BlackElo "2443"]
[Annotator "TA"]
[PlyCount "34"]
[EventDate "2022.05.18"]
[EventType "team-tourn"]
[EventCountry "CRO"]
[SourceTitle "playchess.com"]
[Source "ChessBase"]
[SourceQuality "1"]
[TimeControl "40/5400+30:1800+30"]

{[%evp 9,34,-36,8,-18,0,0,1,0,0,0,0,0,0,0,17,-6,0,-16,14,0,0,-4,0,4,0,0,2]} 1. e4 {[%emt 0:00:04]} e5 {[%emt 0:00:10]} 2. Nc3 {[%emt 0:00:06]} Nf6 {[%emt 0:01:16]} 3. f4 {[%emt 0:00:23]} d5 {[%emt 0:00:14]} 4. fxe5 {[%emt 0:00:25]} Nxe4 {[%emt 0:00:07]} 5. Qf3 {[%emt 0:00:06]} Nxc3 {[%emt 0:03:05]} (5... f5 $5 {[%cal Rf8c5]}) 6. dxc3 {[%emt 0:00:02] The position is equal. C29: Vienna Game: 2...Nf6 3 f4.} c6 {[%emt 0:04:45]} 7. Bf4 {[%emt 0:00:24]} Be6 {[%emt 0:06:03]} 8. Qg3 {[%emt 0:05:15]} Nd7 {[%emt 0:01:25][%cal Bb8d7,Bd7c5,Bc5d3][%mdl 32]} 9. Nf3 {[%emt 0:01:40] [#]} h6 $146 {[%emt 0:02:33]} ({Predecessor:} 9... Qb6 10. Bd3 O-O-O 11. b4 c5 12. Be3 Qc7 13. O-O h6 14. Rab1 g5 15. bxc5 Bxc5 16. Bxc5 Qxc5+ {½-½ (48) Sedivy,M (2026)-Cely,J (1994) Czech Republic 2017}) 10. h4 {[%emt 0:00:27]} Nc5 {[%emt 0:02:12] [#] Threatens to win with ...Qb6.} 11. Nd4 {[%emt 0:06:31]} Qd7 {[%emt 0:07:44]} 12. Nxe6 {[%emt 0:18:13]} Qxe6 {[%emt 0:04:31]} 13. Bd3 {[%emt 0:01:33]} g6 {[%emt 0:05:05]} 14. O-O-O {[%emt 0:01:05]} Bg7 {[%emt 0:00:29]} 15. Qe3 {[%emt 0:06:41]} Nxd3+ {[%emt 0:03:12]} 16. cxd3 {[%emt 0:00:12]} h5 {[%emt 0:10:24]} 17. d4 {[%emt 0:03:05]} O-O {[%emt 0:01:58] An uneventful encounter.  Weighted Error Value: White=0.05 (flawless) /Black=0.10 (very precise)} 1/2-1/2